bitfinex-derivatives/quotes_BTCF0:USTF0_20250614
["timestamp","ask_amount","ask_price","bid_price","bid_amount"]
[1749942671590,0.12492949,105530.0,105520.0,1.6816859]
[1749942672489,0.12492949,105530.0,105520.0,1.86133497]
[1749942673984,0.12492949,105530.0,105520.0,1.6816859]
[1749942678793,0.15592949,105530.0,105520.0,1.7259648]
[1749942679092,0.15592949,105530.0,105520.0,1.68171317]
[1749942680493,0.15592949,105530.0,105520.0,1.86136224]
[1749942680887,0.15592949,105530.0,105520.0,1.68171317]
[1749942681186,0.35802182,105530.0,105520.0,1.8838055]
[1749942683287,0.32742182,105530.0,105520.0,1.8838055]
[1749942683492,0.32742182,105530.0,105520.0,1.9156055]
[1749942684188,0.32742182,105530.0,105520.0,2.00425098]
[1749942684888,0.32742182,105530.0,105520.0,1.9156055]
[1749942685295,0.32742182,105530.0,105520.0,2.00425098]
[1749942685495,0.32742182,105530.0,105520.0,1.91559641]
[1749942686397,0.32742182,105530.0,105520.0,2.00424189]
[1749942686793,0.32742182,105530.0,105520.0,1.95985713]
[1749942687193,0.32742182,105530.0,105520.0,1.91560463]
[1749942687595,0.29642182,105530.0,105520.0,1.95985713]
[1749942687795,0.26552182,105530.0,105520.0,1.95985713]
[1749942688501,0.35432162,105530.0,105520.0,1.915604]
[1749942688688,0.26552182,105530.0,105520.0,1.915604]
[1749942688999,0.26552182,105530.0,105520.0,1.95985713]
[1749942694599,0.06342949,105530.0,105520.0,1.95985713]
[1749942695201,0.26552182,105530.0,105520.0,1.95517713]
[1749942695499,0.45496942,105530.0,105520.0,0.6177248]
[1749942695706,0.90456922,105530.0,105520.0,0.47708909]
[1749942695912,0.94102063,105530.0,105520.0,0.41791547]
[1749942696102,0.95034364,105530.0,105520.0,0.41791547]
[1749942697213,0.94102063,105530.0,105520.0,0.41691547]
[1749942697415,1.00022495,105530.0,105520.0,0.41691547]
[1749942697612,0.79813262,105530.0,105520.0,0.41691547]
[1749942697806,1.00022495,105530.0,105520.0,0.41691547]
[1749942698007,0.94102063,105530.0,105520.0,0.41691547]
[1749942698311,1.00022243,105530.0,105520.0,0.41491547]
[1749942699616,0.7981301,105530.0,105520.0,0.6170078]
[1749942699812,1.00022243,105530.0,105520.0,0.6170078]
[1749942700112,0.99608408,105530.0,105520.0,0.6170078]
[1749942702115,0.43319175,105530.0,105520.0,0.6170078]
[1749942702313,0.14814415,105530.0,105520.0,0.9778078]
[1749942702516,0.14814415,105530.0,105520.0,1.0731078]
[1749942702815,0.05934435,105530.0,105520.0,1.13228142]
[1749942703012,0.05934435,105530.0,105520.0,0.93018909]
[1749942703314,0.05934435,105530.0,105520.0,1.13228142]
[1749942705812,0.00014255,105530.0,105520.0,1.2209269]
[1749942706013,0.00014255,105530.0,105520.0,1.17651713]
[1749942708122,0.00014255,105530.0,105520.0,1.18065548]
[1749942708723,0.00014255,105530.0,105520.0,0.99961548]
[1749942708925,0.00014255,105530.0,105520.0,1.95657548]
[1749942709223,0.00014255,105530.0,105520.0,1.95243713]
[1749942711223,0.00014255,105530.0,105520.0,1.92995206]
[1749942711422,0.00014255,105530.0,105520.0,1.84130658]
[1749942712524,0.00014255,105530.0,105520.0,0.88434658]
[1749942712727,0.00014255,105530.0,105520.0,1.88546844]
[1749942713127,0.00014255,105530.0,105520.0,1.84110658]
[1749942713625,0.00014255,105530.0,105520.0,0.92870753]
[1749942713821,0.00014255,105530.0,105520.0,1.88514753]
[1749942714424,0.00014255,105530.0,105520.0,0.92870753]
[1749942714723,0.00014255,105530.0,105520.0,1.84078658]
[1749942714927,0.00014255,105530.0,105520.0,1.88514754]
[1749942715119,0.00014255,105530.0,105520.0,1.84078658]
[1749942715625,0.00014255,105530.0,105520.0,1.88514643]
[1749942715926,0.00014255,105530.0,105520.0,1.84078658]
[1749942716525,0.00014255,105530.0,105520.0,1.88514644]
[1749942717023,0.00014255,105530.0,105520.0,1.84078658]
[1749942717722,0.00014255,105530.0,105520.0,1.84034658]
[1749942720219,0.00014255,105530.0,105520.0,0.88434658]
[1749942720420,0.00014255,105530.0,105520.0,1.83986658]
[1749942720620,0.00014255,105530.0,105520.0,0.88434658]
[1749942720924,0.00014255,105530.0,105520.0,1.83986658]
[1749942723226,0.00014255,105530.0,105520.0,2.47889932]
[1749942723430,0.00014255,105530.0,105520.0,2.65850658]
[1749942724331,0.00014255,105530.0,105520.0,1.70318658]
[1749942724532,0.00014255,105530.0,105520.0,2.65826658]
[1749942725233,0.0042809,105530.0,105520.0,2.65826658]
[1749942725628,0.0042809,105530.0,105520.0,2.70262407]
[1749942726635,0.0042809,105530.0,105520.0,2.65826658]
[1749942726936,0.0042809,105530.0,105520.0,2.70218663]
[1749942727136,0.0042809,105530.0,105520.0,1.74754663]
[1749942727324,0.0042809,105530.0,105520.0,2.65782658]
[1749942727831,0.0350809,105530.0,105520.0,2.65782658]
[1749942728030,0.0350809,105530.0,105520.0,2.70218982]
[1749942728229,0.0350809,105530.0,105520.0,2.65782658]
[1749942729128,0.0942827,105530.0,105520.0,2.70219322]
[1749942730533,0.1597827,105530.0,105520.0,2.65782658]
[1749942731234,0.1005809,105530.0,105520.0,2.74647206]
[1749942731633,0.1597827,105530.0,105520.0,2.74647206]
[1749942731933,0.1597827,105530.0,105520.0,1.6122248]
[1749942732138,0.1597827,105530.0,105520.0,2.65065206]
[1749942733135,0.1597827,105530.0,105520.0,2.56200658]
[1749942733431,0.1597827,105530.0,105520.0,2.58448219]
[1749942738238,0.1597827,105530.0,105520.0,2.71753814]
[1749942739031,0.1597827,105530.0,105520.0,2.67312767]
[1749942740931,0.1597827,105530.0,105520.0,2.67240767]
[1749942742338,0.1597827,105530.0,105520.0,2.70454767]
[1749942743140,0.1597827,105530.0,105520.0,2.70434767]
[1749942745242,0.1597827,105530.0,105520.0,2.66011713]
[1749942745840,0.1597827,105530.0,105520.0,2.69021713]
[1749942746646,0.2485825,105530.0,105520.0,2.69021713]
[1749942749744,0.29786557,105530.0,105520.0,1.56167932]
[1749942749941,0.36116557,105530.0,105520.0,1.76376219]
[1749942750446,0.36116557,105530.0,105520.0,1.80817199]
[1749942750749,0.36116557,105530.0,105520.0,1.76376219]
[1749942751348,0.36116557,105530.0,105520.0,1.80817064]
[1749942751546,0.44996537,105530.0,105520.0,1.44733064]
[1749942751748,0.55061317,105530.0,105520.0,1.44713064]
[1749942751950,0.63941297,105530.0,105520.0,1.44713064]
[1749942752147,0.44996537,105530.0,105520.0,1.44713064]
[1749942752650,0.36116557,105530.0,105520.0,1.44713064]
[1749942753149,0.55061317,105530.0,105520.0,1.24508777]
[1749942753450,0.55061317,105530.0,105520.0,1.44717064]
[1749942754242,0.55061317,105530.0,105520.0,1.38791702]
[1749942754243,0.63941297,105530.0,105520.0,1.38791702]
[1749942754548,0.58021117,105530.0,105520.0,1.38791702]
[1749942755042,0.3781283,105530.0,105520.0,1.38791702]
[1749942755244,0.58021117,105530.0,105520.0,1.38791702]
[1749942755439,0.63940312,105530.0,105520.0,1.38791702]
[1749942757949,0.63940312,105530.0,105520.0,1.38790303]
[1749942759549,0.43732025,105530.0,105520.0,1.38790303]
[1749942759950,0.63940312,105530.0,105520.0,1.38790303]
[1749942760443,0.63940312,105530.0,105520.0,1.41860303]
[1749942760647,0.63940312,105530.0,105520.0,1.45050303]
[1749942761850,0.63940312,105530.0,105520.0,1.24842016]
[1749942762053,0.63940312,105530.0,105520.0,1.45050303]
[1749942762651,0.41805552,105530.0,105520.0,1.24842016]
[1749942762844,0.41805552,105530.0,105520.0,1.48220303]
[1749942763038,0.60750312,105530.0,105520.0,1.48220303]
[1749942763246,0.54380312,105530.0,105520.0,1.48220303]
[1749942763850,0.35435552,105530.0,105520.0,1.48220303]
[1749942767048,0.15227265,105530.0,105520.0,1.48220303]
[1749942767253,0.29516357,105530.0,105520.0,1.43780857]
[1749942767552,0.35434379,105530.0,105520.0,1.43780857]
[1749942768253,0.35434373,105530.0,105520.0,1.43780857]
[1749942768754,0.29516357,105530.0,105520.0,1.43780857]
[1749942770148,0.48461117,105530.0,105520.0,1.43596857]
[1749942772956,0.48461117,105530.0,105520.0,1.2338857]
[1749942773158,0.48461117,105530.0,105520.0,1.43596857]
[1749942774058,0.57971117,105530.0,105520.0,1.43596857]
[1749942774253,0.57971117,105530.0,105520.0,1.48036303]
[1749942774466,0.57971117,105530.0,105520.0,1.43596857]
[1749942774660,0.57971117,105530.0,105520.0,1.48036303]
[1749942775062,0.57971117,105530.0,105520.0,1.43596857]
[1749942775466,0.57971117,105530.0,105520.0,1.48036303]
[1749942778869,0.57971117,105530.0,105520.0,1.27828016]
[1749942779069,0.57971117,105530.0,105520.0,0.29646016]
[1749942779367,0.57971117,105530.0,105520.0,1.44822303]
[1749942782963,0.39026357,105530.0,105520.0,1.24614016]
[1749942783162,0.57971117,105530.0,105520.0,1.44822303]
[1749942783364,0.57971117,105530.0,105520.0,1.48082303]
[1749942784264,0.57971117,105530.0,105520.0,1.84162303]
[1749942785373,0.3776283,105530.0,105520.0,1.84162303]
[1749942785671,0.39026357,105530.0,105520.0,1.84162303]
[1749942786869,0.57971117,105530.0,105520.0,1.63954016]
[1749942787074,0.57971117,105530.0,105520.0,1.84162303]
[1749942791578,0.57971117,105530.0,105520.0,1.79722857]
[1749942792680,0.57971117,105530.0,105520.0,1.79742857]
[1749942793778,0.57971117,105530.0,105520.0,0.84754857]
[1749942793977,0.57971117,105530.0,105520.0,1.79726857]
[1749942794279,0.57971117,105530.0,105520.0,1.76466857]
[1749942794672,0.589293,105530.0,105520.0,1.76466857]
[1749942794871,0.589293,105530.0,105520.0,0.6128657]
[1749942795167,0.950093,105530.0,105520.0,0.3686657]
[1749942795372,0.950093,105530.0,105520.0,1.1390657]
[1749942795773,0.950093,105530.0,105520.0,0.3686657]
[1749942795974,0.950093,105530.0,105520.0,1.1390257]
[1749942796480,0.950093,105530.0,105520.0,0.3686657]
[1749942797471,0.950093,105530.0,105520.0,0.1894657]
[1749942797668,0.950093,105530.0,105520.0,0.3686657]
[1749942797873,0.950093,105530.0,105520.0,0.1894657]
[1749942799978,0.950093,105530.0,105520.0,0.3686657]
[1749942801876,0.950093,105530.0,105520.0,0.1894657]
[1749942802280,0.8612932,105530.0,105520.0,0.1894657]
[1749942802480,0.95011795,105530.0,105520.0,0.1894657]
[1749942803081,0.8612932,105530.0,105520.0,0.1894657]
[1749942803378,0.97968338,105530.0,105520.0,0.1894657]
[1749942804380,0.8612932,105530.0,105520.0,0.1894657]
[1749942804780,0.95010803,105530.0,105520.0,0.1894657]
[1749942805871,0.8612932,105530.0,105520.0,0.1894657]
[1749942806081,0.95010584,105530.0,105520.0,0.1894657]
[1749942806681,0.8612932,105530.0,105520.0,0.1894657]
[1749942806883,0.95010487,105530.0,105520.0,0.1894657]
[1749942807485,0.8612932,105530.0,105520.0,0.1894657]
[1749942808184,0.85171137,105530.0,105520.0,0.1894657]
[1749942814487,0.97010155,105530.0,105520.0,0.1894657]
[1749942814686,0.9659632,105530.0,105520.0,0.1894657]
[1749942815594,0.97010155,105530.0,105520.0,0.1894657]
[1749942824894,0.97010155,105530.0,105520.0,0.2219657]
[1749942827498,1.11794323,105530.0,105520.0,0.2219657]
[1749942827794,0.97010155,105530.0,105520.0,0.2219657]
[1749942835699,0.97010155,105530.0,105520.0,0.1894657]
[1749942835904,0.1894655,105520.0,105510.0,0.3149015]
[1749942836101,0.93476578,105520.0,105510.0,0.4630015]
[1749942837096,0.93476578,105520.0,105510.0,0.4650015]
[1749942837399,0.84594837,105520.0,105510.0,0.4660015]
[1749942837700,0.93476033,105520.0,105510.0,0.4660015]
[1749942838796,0.84594837,105520.0,105510.0,0.4660015]
[1749942839295,0.93475856,105520.0,105510.0,0.4660015]
[1749942839700,0.96433855,105520.0,105510.0,0.4660015]
[1749942839899,0.9347546,105520.0,105510.0,0.4660015]
[1749942840398,0.96433855,105520.0,105510.0,0.4660015]
[1749942840595,0.96433855,105520.0,105510.0,0.2872015]
[1749942840802,1.02474837,105520.0,105510.0,0.003]
[1749942841002,0.1894835,105510.0,105500.0,0.28437575]
[1749942841196,1.13654446,105510.0,105500.0,0.46317575]
[1749942841391,0.84566637,105510.0,105500.0,0.28437575]
[1749942841996,0.93442379,105510.0,105500.0,0.28437575]
[1749942842200,0.93442379,105510.0,105500.0,0.28937575]
[1749942842497,1.13650666,105510.0,105500.0,0.24200205]
[1749942842707,1.16613942,105510.0,105500.0,0.00514255]
[1749942842895,1.16613942,105510.0,105500.0,0.19464405]
[1749942843101,1.16613942,105510.0,105500.0,0.00514255]
[1749942843301,1.16613942,105510.0,105500.0,0.19464405]
[1749942843501,1.16613942,105510.0,105500.0,0.19664405]
[1749942844404,1.16613942,105510.0,105500.0,0.00714255]
[1749942844606,1.16613942,105510.0,105500.0,0.19664405]
[1749942844805,1.04774924,105510.0,105500.0,0.19664405]
[1749942845104,1.16613942,105510.0,105500.0,0.19664405]
[1749942845904,1.91313655,105510.0,105500.0,0.19664405]
[1749942846104,1.9172749,105510.0,105500.0,0.19664405]
[1749942847603,2.11935777,105510.0,105500.0,0.19664405]
[1749942848805,1.9172749,105510.0,105500.0,0.19664405]
[1749942849499,1.9172349,105510.0,105500.0,0.19664405]
[1749942849700,1.88744116,105510.0,105500.0,0.19664405]
[1749942850195,1.88330281,105510.0,105500.0,0.19664405]
[1749942850400,0.93426281,105510.0,105500.0,0.19664405]
[1749942850602,0.48016281,105510.0,105500.0,0.39872692]
[1749942850806,0.48016281,105510.0,105500.0,0.49492692]
[1749942853109,0.48430116,105510.0,105500.0,0.49492692]
[1749942857206,0.48016281,105510.0,105500.0,0.49492692]
[1749942858210,0.48430116,105510.0,105500.0,0.49492692]
[1749942861115,0.15181336,105510.0,105500.0,0.85572692]
[1749942861311,0.14767501,105510.0,105500.0,0.85572692]
[1749942862314,0.35389623,105510.0,105500.0,0.85572692]
[1749942863816,0.54337973,105510.0,105500.0,0.85572692]
[1749942864718,0.48430116,105510.0,105500.0,0.85572692]
[1749942865423,0.48016281,105510.0,105500.0,0.85572692]
[1749942865918,0.53928926,105510.0,105500.0,0.85572692]
[1749942866221,0.48016281,105510.0,105500.0,0.85572692]
[1749942866415,0.48430116,105510.0,105500.0,0.85572692]
[1749942870316,0.28221829,105510.0,105500.0,0.85572692]
[1749942870517,0.48430116,105510.0,105500.0,0.85572692]
[1749942874724,0.48430116,105510.0,105500.0,0.67368692]
[1749942874725,0.84510116,105510.0,105500.0,0.67368692]
[1749942874913,0.94100116,105510.0,105500.0,0.67368692]
[1749942875116,0.94100116,105510.0,105500.0,0.47160405]
[1749942876018,0.94100116,105510.0,105500.0,0.37540405]
[1749942877222,0.28221829,105510.0,105500.0,0.93828692]
[1749942877523,0.48016281,105510.0,105500.0,0.67368692]
[1749942878425,0.84096281,105510.0,105500.0,0.67368692]
[1749942878618,0.84510116,105510.0,105500.0,0.67368692]
[1749942879022,0.48430116,105510.0,105500.0,0.67368692]
[1749942879926,0.84510116,105510.0,105500.0,0.67368692]
[1749942881625,0.94370116,105510.0,105500.0,0.67368692]
[1749942882027,0.94370116,105510.0,105500.0,0.64128692]
[1749942882628,0.93956281,105510.0,105500.0,0.64128692]
[1749942883532,0.94370116,105510.0,105500.0,0.64128692]
[1749942888234,0.94370116,105510.0,105500.0,0.19664405]
[1749942888536,0.94370116,105510.0,105500.0,0.37536405]
[1749942889535,0.94370116,105510.0,105500.0,0.19664405]
[1749942889737,0.94370116,105510.0,105500.0,0.37536405]
[1749942890530,1.06209134,105510.0,105500.0,0.41976592]
[1749942896542,0.94370116,105510.0,105500.0,0.41976592]
[1749942899539,0.58290116,105510.0,105500.0,0.41976592]
[1749942899843,0.94370116,105510.0,105500.0,0.41976592]
[1749942900040,0.58290116,105510.0,105500.0,0.41976592]
[1749942900345,0.94370116,105510.0,105500.0,0.41976592]
[1749942902048,0.58290116,105510.0,105500.0,0.41976592]
[1749942902242,0.94370116,105510.0,105500.0,0.41976592]
[1749942902442,0.94370116,105510.0,105500.0,0.24104592]
[1749942902952,0.58290116,105510.0,105500.0,0.24104592]
[1749942903140,0.94370116,105510.0,105500.0,0.24104592]
[1749942906351,0.58290116,105510.0,105500.0,0.24104592]
[1749942906550,0.70129134,105510.0,105500.0,0.24104592]
[1749942907051,0.94370116,105510.0,105500.0,0.24104592]
[1749942907746,0.74161829,105510.0,105500.0,0.24104592]
[1749942907954,0.38081829,105510.0,105500.0,0.44312879]
[1749942908250,0.58290116,105510.0,105500.0,0.50552879]
[1749942908749,0.58290116,105510.0,105500.0,0.27314592]
[1749942909450,0.38081829,105510.0,105500.0,0.27314592]
[1749942909751,0.58290116,105510.0,105500.0,0.27314592]
[1749942911853,0.58290116,105510.0,105500.0,0.45178592]
[1749942912843,0.58290116,105510.0,105500.0,0.65386879]
[1749942914454,0.58290116,105510.0,105500.0,0.45178592]
[1749942915857,0.58290116,105510.0,105500.0,0.65386879]
[1749942916053,0.58290116,105510.0,105500.0,0.68476879]
[1749942916558,0.38081829,105510.0,105500.0,0.68476879]
[1749942916759,0.58290116,105510.0,105500.0,0.68476879]
[1749942924261,0.38081829,105510.0,105500.0,0.68476879]
[1749942924463,0.58290116,105510.0,105500.0,0.68476879]
[1749942926462,0.58290116,105510.0,105500.0,0.64036692]
[1749942926859,0.58290116,105510.0,105500.0,0.68476879]
[1749942927666,0.58290116,105510.0,105500.0,0.48268592]
[1749942927962,0.58290116,105510.0,105500.0,0.68476879]
[1749942928266,0.58290116,105510.0,105500.0,0.64036692]
[1749942928458,0.58290116,105510.0,105500.0,0.68476879]
[1749942928763,0.70129134,105510.0,105500.0,0.64036692]
[1749942929866,0.70129134,105510.0,105500.0,0.67186692]
[1749942931168,0.58290116,105510.0,105500.0,0.71626879]
[1749942931668,0.55020116,105510.0,105500.0,0.71626879]
[1749942932971,0.55020116,105510.0,105500.0,1.07706879]
[1749942933270,0.34811829,105510.0,105500.0,1.07706879]
[1749942933463,0.66859134,105510.0,105500.0,1.07706879]
[1749942933963,0.66859134,105510.0,105500.0,1.03266692]
[1749942934169,0.66859134,105510.0,105500.0,1.07706879]
[1749942936472,0.32781766,105510.0,105500.0,1.07706879]
[1749942937369,0.12573479,105510.0,105500.0,1.07706879]
[1749942937566,0.32781766,105510.0,105500.0,1.07706879]
[1749942938871,0.51730116,105510.0,105500.0,1.07706879]
[1749942939370,0.51730116,105510.0,105500.0,0.87498592]
[1749942939669,0.51730116,105510.0,105500.0,1.07706879]
[1749942939869,0.57930116,105510.0,105500.0,1.07706879]
[1749942941768,0.57930116,105510.0,105500.0,1.07709791]
[1749942943070,0.57930116,105510.0,105500.0,0.68479791]
[1749942944468,0.57930116,105510.0,105500.0,0.41971504]
[1749942948475,0.69769134,105510.0,105500.0,0.37528405]
[1749942952874,0.57930116,105510.0,105500.0,0.41971504]
[1749942953281,0.69769134,105510.0,105500.0,0.37528405]
[1749942953582,0.57930116,105510.0,105500.0,0.41971504]
[1749942954082,0.57930116,105510.0,105500.0,0.37528405]
[1749942954481,0.57930116,105510.0,105500.0,0.41971504]
[1749942955080,0.57930116,105510.0,105500.0,0.37528405]
[1749942955279,0.57930116,105510.0,105500.0,0.41971504]
[1749942955479,0.69769134,105510.0,105500.0,0.37528405]
[1749942955981,0.69769134,105510.0,105500.0,0.41971504]
[1749942956381,0.69769134,105510.0,105500.0,0.37528405]
[1749942956685,0.69769134,105510.0,105500.0,0.41971504]
[1749942957185,0.69769134,105510.0,105500.0,0.37528405]
[1749942957686,0.69769134,105510.0,105500.0,0.41971504]
[1749942958084,0.69769134,105510.0,105500.0,0.37528405]
[1749942958283,0.69769134,105510.0,105500.0,0.41971504]
[1749942958986,0.69769134,105510.0,105500.0,0.37528405]
[1749942959188,0.69769134,105510.0,105500.0,0.41971504]
[1749942959386,0.6090949,105510.0,105500.0,0.37528405]
[1749942963593,0.6090949,105510.0,105500.0,0.37520405]
[1749942964193,0.6090949,105510.0,105500.0,0.19664405]
[1749942976902,0.57956904,105510.0,105500.0,0.19664405]
[1749942977104,0.57543069,105510.0,105500.0,0.19664405]
[1749942978209,0.48656637,105510.0,105500.0,0.19664405]
[1749942978412,0.57543071,105510.0,105500.0,0.19664405]
[1749942983311,0.57543071,105510.0,105500.0,0.30577504]
[1749942983618,0.37334784,105510.0,105500.0,0.30577504]
[1749942983805,0.57543071,105510.0,105500.0,0.26134405]
[1749942984004,0.60495655,105510.0,105500.0,0.26134405]
[1749942984607,0.78343655,105510.0,105500.0,0.26134405]
[1749942986412,0.57325655,105510.0,105500.0,0.26134405]
[1749942986613,0.77730017,105510.0,105500.0,0.65474405]
[1749942986813,0.68843655,105510.0,105500.0,0.65474405]
[1749942987513,0.68843655,105510.0,105500.0,0.85682692]
[1749942988508,0.50995655,105510.0,105500.0,0.85682692]
[1749942989310,0.59882056,105510.0,105500.0,0.85682692]
[1749942989912,0.50995655,105510.0,105500.0,0.85682692]
[1749942990110,0.50995655,105510.0,105500.0,0.65474405]
[1749942990603,0.54195655,105510.0,105500.0,0.65474405]
[1749942991113,0.51243064,105510.0,105500.0,0.65474405]
[1749942993210,0.71451351,105510.0,105500.0,0.10444255]
[1749942993510,0.1895015,105500.0,105490.0,0.04436699]
[1749942993711,0.1895195,105490.0,105480.0,0.5787866]
[1749942993915,0.90046515,105490.0,105480.0,0.51961298]
[1749942994110,0.90046515,105490.0,105480.0,0.40253298]
[1749942994312,0.90046515,105490.0,105480.0,0.58101298]
[1749942995417,0.53966515,105490.0,105480.0,0.58101298]
[1749942995618,0.53666515,105490.0,105480.0,0.62001298]
[1749942996418,0.53666515,105490.0,105480.0,0.62401298]
[1749942997618,0.53666515,105490.0,105480.0,0.98481298]
[1749942998118,0.44782748,105490.0,105480.0,0.98481298]
[1749942998316,0.53666515,105490.0,105480.0,1.18689585]
[1749942998713,0.44782748,105490.0,105480.0,1.18689585]
[1749942999314,0.53666515,105490.0,105480.0,1.18689585]
[1749942999821,0.61336421,105490.0,105480.0,1.18689585]
[1749943000320,0.42684471,105490.0,105480.0,1.18689585]
[1749943000509,0.52752654,105490.0,105480.0,1.18689585]
[1749943000917,0.33800704,105490.0,105480.0,1.18689585]
[1749943007934,0.13592417,105490.0,105480.0,1.18689585]
[1749943008134,0.33800704,105490.0,105480.0,1.18681585]
[1749943009533,0.33800704,105490.0,105480.0,1.1909542]
[1749943011333,0.05922511,105490.0,105480.0,1.39303707]
[1749943011533,0.05922511,105490.0,105480.0,1.18681585]
[1749943011734,0.5397907,105500.0,105490.0,0.1895195]
[1749943011938,0.5397907,105500.0,105490.0,0.84940237]
[1749943012736,0.48056559,105500.0,105490.0,0.84940237]
[1749943013332,0.48056559,105500.0,105490.0,0.6473195]
[1749943013837,0.48056559,105500.0,105490.0,0.6513195]
[1749943014031,0.55552581,105500.0,105490.0,0.6533195]
[1749943019941,0.35344294,105500.0,105490.0,0.6533195]
[1749943020141,0.55552581,105500.0,105490.0,0.6533195]
[1749943020842,0.55552581,105500.0,105490.0,0.85540237]
[1749943021747,0.36602331,105500.0,105490.0,0.85540237]
[1749943022044,0.55552481,105500.0,105490.0,0.85540237]
[1749943024842,0.58852481,105500.0,105490.0,0.85540237]
[1749943025342,0.58851985,105500.0,105490.0,0.85540237]
[1749943025642,0.56248714,105500.0,105490.0,0.85540237]
[1749943026038,0.65131952,105500.0,105490.0,0.5563195]
[1749943026244,0.92328714,105500.0,105490.0,0.1955195]
[1749943026438,0.6809828,105500.0,105490.0,0.1955195]
[1749943027537,1.0417828,105500.0,105490.0,0.1955195]
[1749943027737,0.6809828,105500.0,105490.0,0.1955195]
[1749943028247,1.0417828,105500.0,105490.0,0.3739195]
[1749943028649,1.0417828,105500.0,105490.0,0.1955195]
[1749943028850,1.0417828,105500.0,105490.0,0.3739195]
[1749943031146,0.92328714,105500.0,105490.0,0.3739195]
[1749943031552,1.0417828,105500.0,105490.0,0.3739195]
[1749943032055,0.92328714,105500.0,105490.0,0.3739195]
[1749943032455,1.0417828,105500.0,105490.0,0.3739195]
[1749943032753,0.92328714,105500.0,105490.0,0.3739195]
[1749943033251,1.0417828,105500.0,105490.0,0.3739195]
[1749943033957,1.0417828,105500.0,105490.0,0.006]
[1749943034152,1.8111828,105500.0,105490.0,0.006]
[1749943034351,1.84052882,105500.0,105490.0,0.006]
[1749943035155,1.95897411,105500.0,105490.0,0.006]
[1749943035456,1.84052882,105500.0,105490.0,0.006]
[1749943036559,1.95894653,105500.0,105490.0,0.006]
[1749943036862,1.81110485,105500.0,105490.0,0.006]
[1749943038254,1.69268714,105500.0,105490.0,0.006]
[1749943038456,1.81107509,105500.0,105490.0,0.006]
[1749943042268,0.1895375,105480.0,105470.0,0.33184975]
[1749943042460,1.58094292,105480.0,105470.0,0.51012975]
[1749943042663,1.76468675,105480.0,105470.0,0.51012975]
[1749943043060,1.67594292,105480.0,105470.0,0.51012975]
[1749943043266,1.77438163,105480.0,105470.0,0.51512975]
[1749943043466,1.00502163,105480.0,105470.0,0.52312975]
[1749943043968,0.99532675,105480.0,105470.0,0.52312975]
[1749943044169,1.67594292,105480.0,105470.0,0.52312975]
[1749943044360,1.87802579,105480.0,105470.0,0.52312975]
[1749943044769,1.96676962,105480.0,105470.0,0.25007365]
[1749943046771,1.97601527,105480.0,105470.0,0.25007365]
[1749943049174,1.82810889,105480.0,105470.0,0.25007365]
[1749943051273,1.97595206,105480.0,105470.0,0.25007365]
[1749943052270,1.97595206,105480.0,105470.0,0.20268585]
[1749943052474,2.27761479,105480.0,105470.0,0.01314255]
[1749943052673,2.27761479,105480.0,105470.0,0.20269795]
[1749943054473,2.27761479,105480.0,105470.0,0.19769795]
[1749943054678,2.27761479,105480.0,105470.0,0.19869795]
[1749943055479,2.27761479,105480.0,105470.0,0.19069795]
[1749943055680,2.27761479,105480.0,105470.0,0.19269795]
[1749943057280,2.27761479,105480.0,105470.0,0.19069795]
[1749943057480,2.27761479,105480.0,105470.0,0.18969795]
[1749943059479,2.18890889,105480.0,105470.0,0.18969795]
[1749943060080,2.18890889,105480.0,105470.0,0.00014255]
[1749943060280,2.27763747,105480.0,105470.0,0.00014255]
[1749943060583,2.27763747,105480.0,105470.0,0.18969785]
[1749943061183,2.27763747,105480.0,105470.0,0.1938362]
[1749943062286,2.45587747,105480.0,105470.0,0.1938362]
[1749943062486,2.2537946,105480.0,105470.0,0.2872362]
[1749943063083,2.45587747,105480.0,105470.0,0.2872362]
[1749943063287,2.36714889,105480.0,105470.0,0.2872362]
[1749943063585,2.33484889,105480.0,105470.0,0.2872362]
[1749943063785,2.4236292,105480.0,105470.0,0.2872362]
[1749943063978,2.13276602,105480.0,105470.0,0.2872362]
[1749943064286,2.22154728,105480.0,105470.0,0.2872362]
[1749943064688,2.13276602,105480.0,105470.0,0.2872362]
[1749943064890,0.1895733,105460.0,105450.0,0.4625377]
[1749943065181,1.61057312,105460.0,105450.0,0.0639]
[1749943065387,0.1895913,105450.0,105440.0,0.3146015]
[1749943065689,0.90045511,105450.0,105440.0,0.5566615]
[1749943065987,1.01374103,105450.0,105440.0,0.3311]
[1749943066181,1.01374103,105450.0,105440.0,0.2836989]
[1749943066382,0.1876093,105440.0,105430.0,0.00014255]
[1749943066587,0.89845825,105440.0,105430.0,0.36796975]
[1749943066780,0.8086613,105440.0,105430.0,0.36796975]
[1749943066981,0.8403613,105440.0,105430.0,0.00014255]
[1749943067175,0.90710557,105440.0,105430.0,0.00014255]
[1749943067376,1.88492557,105440.0,105430.0,0.00014255]
[1749943068483,1.79612862,105440.0,105430.0,0.00014255]
[1749943068785,1.79712862,105440.0,105430.0,0.00014255]
[1749943068985,1.96221344,105440.0,105430.0,0.00014255]
[1749943069288,1.87341649,105440.0,105430.0,0.0042809]
[1749943069881,1.96221344,105440.0,105430.0,0.0042809]
[1749943070378,1.87341649,105440.0,105430.0,0.0042809]
[1749943070583,1.87341649,105440.0,105430.0,0.1939075]
[1749943070786,1.87341649,105440.0,105430.0,0.0042809]
[1749943071885,1.87341649,105440.0,105430.0,0.1939075]
[1749943072086,1.87349649,105440.0,105430.0,0.1939075]
[1749943072287,1.81149649,105440.0,105430.0,0.2556075]
[1749943073286,1.75232736,105440.0,105430.0,0.2556075]
[1749943073688,1.81153649,105440.0,105430.0,0.2556075]
[1749943074296,1.84116431,105440.0,105430.0,0.2556075]
[1749943075182,1.90296431,105440.0,105430.0,0.2556075]
[1749943075384,1.96190612,105440.0,105430.0,0.2556075]
[1749943079394,1.96190612,105440.0,105430.0,0.1939075]
[1749943080298,1.78187593,105440.0,105430.0,0.1939076]
[1749943080495,1.96190612,105440.0,105430.0,0.1939076]
[1749943080890,1.96190612,105440.0,105430.0,0.2565076]
[1749943081399,0.95246612,105440.0,105430.0,0.2565076]
[1749943081591,1.90018612,105440.0,105430.0,0.2565076]
[1749943081898,0.07728787,105440.0,105430.0,0.2565076]
[1749943082099,1.03637647,105440.0,105430.0,0.2565076]
[1749943082497,0.1906086,105440.0,105430.0,0.2565076]
[1749943082699,0.001,105440.0,105430.0,0.6173076]
[1749943082899,0.1906086,105440.0,105430.0,0.6173076]
[1749943083090,0.001,105440.0,105430.0,0.6173076]
[1749943083393,0.001,105440.0,105430.0,0.7121556]
[1749943083696,0.001,105440.0,105430.0,0.89218579]
[1749943084095,0.001,105440.0,105430.0,0.7121556]
[1749943084499,0.1906086,105440.0,105430.0,0.7121556]
[1749943085098,0.1906086,105440.0,105430.0,0.6173076]
[1749943085698,0.001,105440.0,105430.0,0.6173076]
[1749943088993,0.1906086,105440.0,105430.0,0.6173076]
[1749943089302,0.001,105440.0,105430.0,0.6173076]
[1749943091197,0.001,105440.0,105430.0,0.79733779]
[1749943091804,0.001,105440.0,105430.0,0.6173076]
[1749943092002,0.001,105440.0,105430.0,0.79733779]